bitfinex/quotes_ETHUSD_20240729
["timestamp","ask_amount","ask_price","bid_price","bid_amount"]
[1722283714839,0.04435201,3324.2,3323.7,3.00868]
[1722283716062,0.04435201,3324.2,3323.8,3.00857]
[1722283716225,2.2857,3324.3,3323.8,3.00857]
[1722283716427,2.86848293,3324.3,3323.8,3.00857]
[1722283716626,0.04437883,3324.2,3323.8,3.00857]
[1722283716821,2.86848293,3324.3,3323.8,3.00857]
[1722283717267,0.04437883,3324.2,3323.8,3.00857]
[1722283717621,0.04436424,3324.1,3323.8,3.00857]
[1722283718149,0.04434964,3324.0,3323.6,3.00871]
[1722283718475,1.109,3324.0,3323.2,3.0]
[1722283718681,1.109,3323.4,3322.9,0.62908564]
[1722283718886,2.4062,3323.3,3322.8,3.0095]
[1722283719188,2.45031202,3323.3,3322.8,3.0095]
[1722283719388,2.45031202,3323.3,3322.6,3.00965]
[1722283719600,3.00915,3323.2,3322.6,3.00965]
[1722283719885,3.00915,3323.2,3322.4,3.00983]
[1722283719886,2.2742,3322.9,3322.4,3.00983]
[1722283720240,0.04383121,3322.8,3322.4,3.00983]
[1722283721846,0.04383121,3322.8,3322.5,3.00977]
[1722283722184,0.04383121,3322.8,3322.7,3.0096]
[1722283722647,0.04383121,3322.8,3322.5,3.00971]
[1722283723162,0.04383121,3322.8,3322.6,3.00968]
[1722283726211,0.04383121,3322.8,3322.7,3.0096]
[1722283728475,2.3452,3323.2,3322.8,3.00948]
[1722283728666,3.31672,3323.2,3322.8,3.00948]
[1722283730104,0.04012302,3323.1,3322.8,3.00948]
[1722283731926,0.04012302,3323.1,3322.6,3.00968]
[1722283733106,0.04012302,3323.1,3322.7,3.00958]
[1722283735359,0.04012302,3323.1,3322.9,3.0094]
[1722283736175,0.04012302,3323.1,3323.0,6.01864]
[1722283736322,2.4616,3323.6,3323.4,3.00893]
[1722283737432,2.4616,3323.6,3323.2,3.00908]
[1722283737659,2.4616,3323.6,3323.0,3.0093]
[1722283737660,3.44476,3323.6,3323.0,3.00926]
[1722283737848,3.44476,3323.6,3322.3,5.666]
[1722283737849,5.26613,3323.5,3322.8,3.00946]
[1722283738080,5.610606,3323.5,3322.8,3.00946]
[1722283738278,5.610606,3323.5,3322.6,3.00963]
[1722283738445,5.610606,3323.5,3322.8,3.00944]
[1722283738650,3.6683466,3323.4,3322.8,3.00944]
[1722283739077,2.2572,3323.3,3322.8,3.00944]
[1722283739669,5.26625,3323.3,3322.6,3.00962]
[1722283739878,6.19415326,3323.3,3322.7,3.00958]
[1722283740448,3.00933,3323.0,3322.4,3.00984]
[1722283740792,0.300933,3322.9,3322.4,3.00982]
[1722283740953,2.3437,3322.9,3322.4,3.00982]
[1722283742599,2.3437,3322.9,3322.6,3.00968]
[1722283743251,2.3437,3322.9,3322.6,4.12068]
[1722283744298,2.3437,3322.9,3322.8,1.111]
[1722283744456,2.3437,3323.2,3322.8,4.12043]
[1722283744651,2.3437,3323.2,3323.1,1.111]
[1722283745111,0.03858246,3323.2,3323.1,1.111]
[1722283745269,3.00874,3323.7,3323.1,1.111]
[1722283745270,2.3437,3323.5,3323.1,4.12023]
[1722283745676,0.03834725,3323.4,3323.1,4.12023]
[1722283747295,0.03834725,3323.4,3323.1,3.00923]
[1722283750803,0.03834725,3323.4,3323.3,3.00905]
[1722283751003,0.03834725,3323.4,3323.3,6.0181]
[1722283751184,9.7308,3323.8,3323.4,3.00894]
[1722283753524,9.7308,3323.8,3323.5,3.00886]
[1722283753723,2.3608,3323.8,3323.5,3.00886]
[1722283753956,2.3608,3323.8,3323.4,3.00894]
[1722283754331,2.3608,3324.2,3323.4,3.00894]
[1722283754534,6.406858,3324.2,3323.6,3.00872]
[1722283754738,3.00842,3324.0,3323.4,3.00894]
[1722283754938,5.36908,3324.2,3323.5,3.00886]
[1722283755560,3.00833,3324.1,3323.5,3.00886]
[1722283756251,3.00833,3324.1,3323.2,3.0091]
[1722283756252,3.00842,3324.0,3323.2,3.0091]
[1722283756975,3.00842,3324.0,3323.4,3.00895]
[1722283757333,0.536898,3324.1,3323.5,3.00887]
[1722283757677,0.536898,3324.1,3323.3,3.00899]
[1722283757678,3.00843,3324.0,3323.3,3.00899]
[1722283758429,3.00843,3324.0,3323.4,3.00896]
[1722283760035,0.03843291,3323.9,3323.4,3.00896]
[1722283761352,3.04697291,3323.9,3323.2,6.01817]
[1722283761553,5.43215,3323.8,3323.2,3.00907]
[1722283761781,5.43215,3323.8,3323.3,3.00904]
[1722283761782,2.46191831,3323.8,3323.3,3.00904]
[1722283763446,2.46191831,3323.8,3323.4,3.00894]
[1722283765461,2.4235,3323.8,3323.2,3.00907]
[1722283765657,0.03839651,3323.7,3323.2,3.00907]
[1722283766069,0.03839651,3323.7,3323.3,3.009]
[1722283766280,0.03839651,3323.7,3323.3,2.54007895]
[1722283766499,2.4235,3324.1,3323.6,3.0087]
[1722283766699,2.66585,3324.1,3323.6,3.0087]
[1722283767060,2.66585,3324.1,3323.7,3.00868]
[1722283767256,2.4235,3324.1,3323.7,3.00868]
[1722283767864,2.4235,3324.1,3323.8,1.11]
[1722283769663,9.7935,3324.4,3323.8,4.11855]
[1722283769960,9.7935,3324.4,3324.0,4.11841]
[1722283770194,12.80156,3324.4,3323.8,4.11855]
[1722283770411,3.00816,3324.3,3323.8,1.11]
[1722283770901,3.00824,3324.2,3323.8,1.11]
[1722283771257,3.00836,3324.1,3323.5,3.00886]
[1722283771481,3.00824,3324.2,3323.4,1.11]
[1722283771482,5.43192,3324.0,3323.4,1.11]
[1722283771786,5.43192,3324.0,3323.4,4.1189]
[1722283772306,3.00862,3323.8,3323.0,2.4799]
[1722283772506,2.4235,3323.7,3323.2,3.00907]
[1722283773028,2.4235,3323.7,3323.2,4.11907]
[1722283773181,2.4235,3323.7,3323.2,7.12813]
[1722283773386,2.4235,3323.7,3323.2,4.11906]
[1722283775232,0.03665618,3323.6,3323.2,4.11906]
[1722283776196,0.03665618,3323.6,3323.2,1.11]
[1722283776400,0.03665618,3323.6,3323.2,4.11913]
[1722283780283,0.03665618,3323.6,3323.0,4.11928]
[1722283780832,3.04543618,3323.6,3323.0,4.11928]
[1722283781426,3.04543618,3323.6,3323.1,3.00923]
[1722283782388,0.03665618,3323.6,3323.1,3.00923]
[1722283783642,0.03665618,3323.6,3323.3,1.11]
[1722283783801,0.03665618,3323.6,3323.1,4.11923]
[1722283785051,0.03665618,3323.6,3322.9,3.00934]
[1722283785052,3.04550618,3323.6,3322.9,3.00934]
[1722283785318,3.04550618,3323.6,3323.0,4.11929]
[1722283785547,3.00892,3323.5,3322.9,3.00934]
[1722283785752,3.04286315,3323.5,3322.9,4.11934]
[1722283786278,0.03394315,3323.5,3323.0,3.00931]
[1722283786617,5.43226,3323.7,3323.1,3.00922]
[1722283786917,5.975486,3323.7,3323.1,3.00922]
[1722283787119,0.03395775,3323.6,3323.2,3.00911]
[1722283789623,0.03395775,3323.6,3323.0,3.00925]
[1722283789624,3.04275775,3323.6,3323.0,3.00925]
[1722283790331,4.00124653,3323.6,3323.0,3.00925]
[1722283790520,4.00124653,3323.6,3323.0,3.00924]
[1722283791735,4.00124653,3323.6,3323.0,4.11924]
[1722283791940,3.04275775,3323.6,3323.0,4.11924]
[1722283792350,3.04275775,3323.6,3323.1,3.0092]
[1722283792351,0.03395775,3323.6,3323.1,3.0092]
[1722283794045,0.03395775,3323.6,3323.0,4.11924]
[1722283794046,3.04275775,3323.6,3323.0,1.11]
[1722283794247,3.04275775,3323.6,3323.0,3.00932]
[1722283794531,3.00887,3323.5,3323.0,3.00932]
[1722283794767,3.04280198,3323.5,3323.0,3.00932]
[1722283794970,3.04280198,3323.5,3322.8,4.11947]
[1722283795156,3.04280198,3323.5,3322.9,3.00939]
[1722283795534,3.00896,3323.4,3322.9,3.00939]
[1722283795744,3.04287738,3323.4,3322.9,3.00939]
[1722283795945,0.03391738,3323.4,3323.3,7.1281]
[1722283796163,2.4355,3324.1,3323.7,3.00866]
[1722283796477,0.98055,3324.1,3323.7,3.00868]
[1722283796631,2.4355,3324.4,3323.7,3.00868]
[1722283796632,3.00817,3324.3,3323.7,3.00868]
[1722283796829,0.52045657,3324.2,3323.7,3.00868]
[1722283797162,0.52045657,3324.1,3323.7,3.00868]
[1722283797373,3.00817,3324.3,3323.7,3.00868]
[1722283797534,0.52065369,3324.2,3323.7,3.00868]
[1722283797735,0.52065369,3324.1,3323.7,3.00868]
[1722283797954,3.96435448,3324.3,3323.7,3.00868]
[1722283798154,0.52065642,3324.2,3323.7,3.00868]
[1722283798481,0.52065642,3324.1,3323.7,3.00868]
[1722283798776,3.96435448,3324.3,3323.7,3.00868]
[1722283798985,0.52067965,3324.2,3323.7,3.00868]
[1722283799201,3.96435448,3324.3,3323.8,3.0086]
[1722283799202,3.00817,3324.3,3323.8,3.0086]
[1722283799381,0.52061249,3324.2,3323.8,3.0086]
[1722283799581,3.00817,3324.3,3323.8,3.0086]
[1722283799900,0.52061434,3324.2,3323.8,3.0086]
[1722283800048,3.00817,3324.3,3323.8,3.0086]
[1722283800255,0.52061773,3324.2,3323.8,3.0086]
[1722283800601,2.4355,3324.4,3324.0,3.0084]
[1722283802001,2.4355,3324.4,3323.8,3.00859]
[1722283802151,2.67907048,3324.4,3323.9,3.00849]
[1722283802901,5.68713048,3324.4,3323.9,3.00849]
[1722283803107,5.68713048,3324.4,3323.7,5.28252]
[1722283803108,3.00816,3324.3,3323.7,5.28252]
[1722283803418,0.56872305,3324.2,3323.8,3.0086]
[1722283803573,5.44361,3324.4,3323.8,3.0086]
[1722283803893,0.52072192,3324.3,3323.8,3.0086]
[1722283804117,2.4355,3324.4,3323.9,1.11]
[1722283804272,2.4355,3324.4,3324.0,3.0084]
[1722283804988,0.0319285,3324.3,3324.0,3.0084]
[1722283806553,0.0319285,3324.3,3323.9,1.11]
[1722283806758,0.0319285,3324.3,3323.9,4.1185]
[1722283807573,0.0319285,3324.3,3324.2,1.11]
[1722283812430,0.00020478,3324.5,3324.2,1.11]
[1722283812637,0.00020478,3324.5,3324.4,1.11]
[1722283814230,0.00020478,3324.5,3324.2,1.11]
[1722283818615,3.00822478,3324.5,3324.2,1.11]
[1722283819913,3.00822478,3324.5,3323.0,3.00928]
[1722283819914,2.4738,3323.8,3323.0,3.00928]
[1722283820242,2.4738,3323.8,3323.1,1.11]
[1722283820243,5.48244,3323.8,3323.1,1.11]
[1722283820553,3.00886,3323.6,3323.1,1.11]
[1722283820864,3.00902,3323.4,3323.0,1.11]
[1722283821030,3.00902,3323.4,3322.8,3.00945]
[1722283821233,3.00902,3323.4,3323.0,1.11]
[1722283821234,0.02967402,3323.3,3323.0,1.11]
[1722283821444,0.02967402,3323.3,3323.2,1.11]
[1722283821615,3.00886,3323.6,3323.2,1.11]
[1722283821816,0.02959366,3323.5,3323.2,1.11]
[1722283823312,3.03848366,3323.5,3323.2,1.11]
[1722283825452,0.02959366,3323.5,3323.2,1.11]
[1722283825816,0.55,3323.7,3323.2,1.11]
[1722283826017,0.02858429,3323.6,3323.2,1.11]
[1722283826764,0.02858429,3323.6,3323.4,1.11]
[1722283827116,0.55,3323.9,3323.4,1.11]
[1722283827318,0.0284991,3323.5,3323.4,1.11]
[1722283827629,0.02850033,3323.5,3323.4,1.11]
[1722283827853,3.0086,3323.9,3323.4,1.11]
[1722283828346,0.02855135,3323.8,3323.4,1.11]
[1722283831645,0.05938495,3323.8,3323.4,1.11]
[1722283832581,0.05938495,3323.8,3323.2,1.11]
[1722283832582,3.06801495,3323.8,3323.2,1.11]
[1722283832782,3.0087,3323.7,3322.9,5.26353]
[1722283832983,3.00896,3323.4,3323.0,1.11]
[1722283833292,0.05935486,3323.3,3323.0,1.11]
[1722283834062,3.55885,3323.6,3323.0,1.11]
[1722283834395,3.55885,3323.6,3323.0,4.11931]
[1722283834593,0.05934641,3323.5,3323.0,4.11931]
[1722283836383,3.06822641,3323.5,3323.0,1.11]
[1722283839423,3.96716205,3323.5,3323.0,1.11]
[1722283839621,3.96716205,3323.5,3322.4,3.0]
[1722283839622,5.46159,3323.1,3322.4,1.11]
[1722283839921,5.46159,3323.1,3322.4,4.11986]
[1722283839922,0.05923598,3323.0,3322.4,4.11986]
[1722283840232,3.00942,3322.9,3322.4,1.11]
[1722283840436,0.05920608,3322.8,3322.4,1.11]
[1722283841191,0.05920608,3322.8,3322.4,4.11985]
[1722283841435,5.46159,3323.1,3322.4,4.11985]
[1722283841590,0.05917753,3323.0,3322.4,4.11985]
[1722283842037,0.05917753,3323.0,3322.4,4.11978]
[1722283842326,0.05917753,3323.0,3322.6,1.11]
[1722283843709,0.05917753,3323.0,3322.4,3.00978]
[1722283843710,3.06852753,3323.0,3322.4,4.11978]
[1722283843908,3.70531108,3323.0,3322.3,3.00993]
[1722283844131,3.70531108,3323.0,3322.5,1.11]
[1722283844642,0.69596108,3323.0,3322.5,1.11]
[1722283844841,0.05917753,3323.0,3322.5,1.11]
[1722283847519,0.05917753,3323.0,3322.5,4.11978]
[1722283849608,3.06851753,3323.0,3322.5,1.11]
[1722283850140,0.05917753,3323.0,3322.5,4.11977]
[1722283852366,0.05917753,3323.0,3322.6,3.00969]
[1722283854027,0.05917753,3323.0,3322.5,1.11]
[1722283855145,3.62058028,3323.0,3322.5,1.11]
[1722283856779,3.62058028,3323.0,3321.8,2.4297]
[1722283856780,2.4341,3322.8,3321.8,2.4297]
[1722283857077,2.4341,3322.8,3322.0,4.12017]
[1722283857078,3.0097,3322.6,3322.0,4.12017]
[1722283857461,0.05868172,3322.5,3322.0,4.12017]
[1722283857827,0.05729879,3322.5,3322.0,4.12017]
[1722283858256,0.05729879,3322.5,3322.0,4.12016]
[1722283859066,0.05729879,3322.5,3322.1,3.01014]
[1722283859257,3.00966,3322.7,3322.1,3.01014]
[1722283859464,0.05855704,3322.4,3322.1,4.12014]
[1722283859799,3.00966,3322.7,3322.1,4.12014]
[1722283859986,0.05854336,3322.3,3322.1,4.12014]
[1722283860378,3.00966,3322.7,3322.1,4.12014]
[1722283860579,0.05852968,3322.2,3322.1,4.12014]
[1722283860782,3.00966,3322.7,3322.1,4.12014]
[1722283861083,3.854982,3322.7,3322.1,4.12014]
[1722283861289,0.05858439,3322.6,3322.1,4.12014]
[1722283863061,0.05858439,3322.6,3322.1,4.12008]
[1722283863598,0.05858439,3322.6,3322.3,1.11]
[1722283864268,5.44362,3322.8,3322.3,1.11]
[1722283864578,0.05758917,3322.7,3322.3,1.11]
[1722283864962,6.07853049,3322.8,3322.3,1.11]
[1722283865164,0.05757549,3322.6,3322.3,1.11]
[1722283865397,0.05758917,3322.7,3322.5,4.1197]
[1722283865638,9.6771,3323.1,3322.6,3.00969]
[1722283865843,2.3071,3323.1,3322.6,3.00969]
[1722283866619,2.3071,3323.1,3322.5,4.1197]
[1722283867019,5.82927,3323.4,3322.9,1.11]
[1722283867358,5.27926,3323.4,3322.9,1.11]
[1722283867519,1.132926,3323.3,3322.7,4.11953]
[1722283868059,5.27926,3323.4,3322.9,1.11]
[1722283868060,2.2703,3323.4,3322.9,1.11]
[1722283868354,2.3515,3323.7,3323.1,4.11923]
[1722283868507,4.281802,3323.6,3323.1,1.11]
[1722283868855,4.281802,3323.6,3323.1,4.11923]
[1722283868856,1.273012,3323.6,3323.1,4.11923]
[1722283869043,2.3515,3323.7,3323.1,1.11]
[1722283869268,3.00879,3323.6,3323.1,1.11]
[1722283869442,3.00879,3323.6,3322.8,5.40425]
[1722283869443,3.00888,3323.5,3322.8,5.40425]
[1722283869642,3.00879,3323.6,3322.9,1.11]
[1722283869643,3.00897,3323.4,3322.9,1.11]
[1722283869852,3.00897,3323.4,3322.2,3.01004]
[1722283869853,2.3515,3323.2,3322.5,5.48103]
[1722283870061,2.3515,3323.2,3322.7,3.00958]
[1722283871283,2.3515,3323.2,3322.8,1.11]
[1722283874681,5.36067,3323.2,3322.8,1.11]
[1722283874862,3.00924,3323.1,3322.6,1.11]
[1722283876260,3.188477,3323.2,3322.6,1.11]
[1722283876464,5.36065,3323.2,3322.6,4.11961]
[1722283877154,5.36065,3323.2,3322.8,1.11]
[1722283879757,8.36988,3323.2,3322.6,3.00961]
[1722283879958,3.00926,3323.1,3322.6,1.11]
[1722283880192,3.06558225,3323.1,3322.6,1.11]
[1722283880686,3.06558225,3323.1,3322.3,3.00992]
[1722283880687,3.00942,3322.9,3322.3,3.00992]
[1722283880991,3.00942,3322.9,3322.2,1.11]
[1722283880992,5.44990122,3322.8,3322.2,1.11]
[1722283881148,5.44990122,3322.8,3322.2,4.12004]
[1722283882063,3.00971,3322.6,3322.0,3.01022]
[1722283882257,0.05624019,3322.5,3322.1,1.11]
[1722283883150,0.05624019,3322.5,3322.3,1.11]
[1722283885702,5.39361,3322.8,3322.3,1.11]
[1722283885886,0.05616624,3322.4,3322.3,1.11]
[1722283886118,5.39361,3322.8,3322.3,1.11]
[1722283886530,0.05620727,3322.7,3322.3,1.11]
[1722283886734,3.06580727,3322.7,3322.3,1.11]
[1722283886884,3.0096,3322.7,3322.3,1.11]
[1722283887237,0.05619583,3322.6,3322.3,1.11]
[1722283892208,2.3841,3322.8,3322.3,1.11]
[1722283892839,0.05621413,3322.7,3322.3,1.11]
[1722283893248,5.39362,3322.8,3322.3,1.11]
[1722283893550,3.06581859,3322.7,3322.3,1.11]
[1722283895322,3.06581859,3322.7,3322.2,4.11999]
[1722283896365,3.06581859,3322.7,3322.2,3.00999]
[1722283896513,3.91175245,3322.7,3322.0,3.01015]
[1722283896720,3.91175245,3322.7,3322.1,1.11]
[1722283897347,3.91175245,3322.7,3322.1,4.12012]
[1722283897961,3.06581859,3322.7,3322.2,3.01003]
[1722283898267,3.06581859,3322.7,3322.3,1.11]
[1722283901278,3.06581859,3322.7,3322.2,3.01003]
[1722283901481,3.06581859,3322.7,3322.1,1.11]
[1722283902180,3.06581859,3322.7,3322.1,4.12012]
[1722283905403,3.06581859,3322.7,3321.6,6.01689368]
[1722283905404,3.00994,3322.4,3321.6,6.01689368]
[1722283905569,3.00994,3322.4,3321.7,1.04731992]
[1722283905570,3.01007,3322.2,3321.7,1.04731992]
[1722283905749,3.01007,3322.2,3321.6,3.01058]
[1722283905948,0.05347889,3322.1,3321.6,3.01058]
[1722283906159,3.06363889,3322.1,3321.4,5.38676]
[1722283906390,3.06363889,3322.1,3321.5,1.11]
[1722283906602,3.67100078,3322.1,3321.5,1.11]
[1722283908295,3.67100078,3322.1,3321.4,3.01069]
[1722283908589,3.67100078,3322.1,3321.5,4.12068]
[1722283908968,0.05347889,3322.1,3321.6,3.01058]
[1722283909172,0.05347889,3322.1,3321.9,1.11]
[1722283909394,2.4996,3322.4,3321.9,1.11]
[1722283909601,0.05337354,3322.0,3321.9,4.12029]
[1722283909796,2.4996,3322.4,3321.9,4.12029]
[1722283910007,0.05337354,3322.0,3321.9,4.12029]
[1722283910211,2.4996,3322.4,3321.9,4.12029]
[1722283910718,0.05346158,3322.3,3321.9,4.12029]
[1722283911015,0.05346158,3322.3,3322.2,3.01005]
[1722283911216,12.8258,3323.1,3322.4,3.00985]
[1722283911386,1.28258,3323.0,3322.6,1.11]
[1722283911588,5.4558,3323.1,3322.6,1.11]
[1722283911916,2.4465,3323.1,3322.6,4.11968]
[1722283912121,3.00878,3323.6,3323.0,1.11]
[1722283912323,3.00878,3323.6,3322.8,4.11944]
[1722283912503,10.9265,3323.8,3322.7,3.00959]
[1722283912504,0.82140064,3323.5,3322.7,3.00959]
[1722283912685,3.00911,3323.3,3322.7,1.11]
[1722283913016,3.00911,3323.3,3322.6,1.11]
[1722283913617,3.00911,3323.3,3322.8,1.11]
[1722283913911,0.300911,3323.2,3322.8,1.11]
[1722283914114,3.310121,3323.2,3322.8,1.11]
[1722283914317,0.300911,3323.2,3322.8,1.11]
[1722283914486,2.4994,3323.1,3322.6,3.00968]
[1722283914673,2.4994,3323.1,3322.7,1.11]
[1722283915713,3.0803421,3323.1,3322.7,1.11]
[1722283916203,2.4994,3323.1,3322.7,1.11]
[1722283916576,5.50869,3323.1,3322.7,1.11]
[1722283917299,3.00942,3322.9,3322.3,3.00993]
[1722283917513,3.00942,3322.9,3322.4,1.11]
[1722283917817,3.00942,3322.9,3322.6,1.11]
[1722283917974,5.50869,3323.1,3322.6,1.11]
[1722283918174,3.5902501,3323.1,3322.8,1.11]
[1722283918371,3.310051,3323.2,3322.8,1.11]
[1722283918618,5.29243,3323.4,3322.8,4.11948]
[1722283918799,2.2834,3323.4,3323.2,1.11]
[1722283919001,3.00888,3323.5,3323.2,1.11]
[1722283919218,2.2834,3323.7,3323.2,1.11]
[1722283919426,5.34541577,3323.6,3323.2,1.11]
[1722283919629,4.824994,3323.6,3323.2,1.11]
[1722283920485,4.274994,3323.6,3323.2,1.11]
[1722283922127,3.00888,3323.5,3323.0,1.11]
[1722283924745,3.00898,3323.4,3323.0,1.11]
[1722283925051,3.05581832,3323.4,3323.0,1.11]
[1722283926340,3.00906,3323.3,3323.0,1.11]
[1722283926718,0.04681098,3323.2,3323.0,1.11]
[1722283926913,3.00888,3323.5,3323.0,1.11]
[1722283927119,0.04683832,3323.4,3323.0,1.11]
[1722283928321,3.05579832,3323.4,3323.0,1.11]
[1722283929768,3.00906,3323.3,3323.0,1.11]
[1722283930271,0.04588341,3323.2,3323.0,1.11]
[1722283930657,3.00906,3323.3,3323.0,1.11]
[1722283930853,0.04586974,3323.1,3323.0,1.11]
[1722283931041,3.00906,3323.3,3323.0,1.11]
[1722283931238,3.00975,3322.6,3322.0,2.3865]
[1722283931441,3.00974,3322.6,3322.3,1.11]
[1722283931681,0.04578321,3322.5,3322.3,1.11]
[1722283932032,3.0096,3322.7,3322.3,1.11]
[1722283932229,3.0096,3322.7,3322.1,3.01014]
[1722283932230,0.04576506,3322.4,3322.1,3.01014]
[1722283932458,3.0096,3322.7,3322.1,3.01014]
[1722283932772,3.00942,3322.9,3322.2,3.01005]
[1722283933065,0.04574766,3322.6,3322.5,1.11]
[1722283933676,3.00957,3322.8,3322.5,1.11]
[1722283933842,0.04571857,3322.6,3322.5,1.11]
[1722283934043,3.00957,3322.8,3322.5,1.11]
[1722283934241,0.04571857,3322.6,3322.0,5.39668]
[1722283934444,3.0096,3322.7,3322.3,1.11]
[1722283934661,0.04570266,3322.5,3322.3,1.11]
[1722283934862,3.0096,3322.7,3322.3,1.11]
[1722283935369,0.04571633,3322.6,3322.3,1.11]
[1722283936445,0.04571633,3322.6,3322.5,1.11]
[1722283936839,3.00944,3322.9,3322.5,1.11]
[1722283937076,0.04572088,3322.6,3322.5,1.11]
[1722283937257,3.00944,3322.9,3322.5,1.11]
[1722283937449,0.04564035,3322.6,3322.0,3.4965]
[1722283937648,3.0096,3322.7,3322.0,6.50666]
[1722283938064,0.04564035,3322.6,3322.0,6.50666]
[1722283938490,3.00979,3322.5,3322.0,3.4965]
[1722283938835,0.045613,3322.4,3322.0,3.4965]
[1722283939565,0.045613,3322.4,3322.0,1.11]
[1722283939754,3.055543,3322.4,3322.0,1.11]
[1722283940352,0.045613,3322.4,3322.0,1.11]
[1722283940550,3.055483,3322.4,3322.0,1.11]
[1722283941560,0.045613,3322.4,3322.0,1.11]
[1722283941748,0.045613,3322.4,3322.0,4.1202]
[1722283942351,3.055483,3322.4,3322.0,1.11]
[1722283943043,0.045613,3322.4,3322.0,1.11]
[1722283943481,3.00976,3322.6,3322.0,4.12022]
[1722283944075,0.04543187,3322.5,3322.0,4.12022]
[1722283944277,0.04543187,3322.5,3322.1,3.01014]
[1722283944584,3.00955,3322.8,3322.2,4.12]
[1722283944740,0.04539793,3322.4,3322.2,4.12]
[1722283944937,3.00955,3322.8,3322.2,4.12]
[1722283945182,3.05503897,3322.7,3322.2,4.12]
[1722283946243,0.04543897,3322.7,3322.2,4.12]
[1722283946545,3.05503897,3322.7,3322.2,4.12]
[1722283946740,0.04543897,3322.7,3322.2,4.12]
[1722283946939,3.00953,3322.8,3322.2,1.11]
[1722283947144,0.04499888,3322.7,3322.2,1.11]
[1722283947380,0.04499888,3322.7,3322.2,4.12002]
[1722283947589,0.04499888,3322.7,3322.2,1.11]
[1722283947887,0.04499888,3322.7,3322.3,3.00996]
[1722283948091,3.00936,3323.0,3322.3,3.00996]
[1722283948388,3.00953,3322.8,3322.2,6.51395]
[1722283948677,0.0435088,3322.9,3322.3,3.00994]
[1722283948888,0.04348145,3322.7,3322.3,3.00994]
[1722283949039,3.05302513,3322.8,3322.2,3.5039]
[1722283949383,0.04351301,3322.7,3322.2,6.51389]
[1722283949592,0.04351301,3322.7,3322.2,3.5039]
[1722283950080,0.04351301,3322.7,3322.3,3.00989]
[1722283950391,3.00942,3322.9,3322.4,3.00986]
[1722283950560,0.04349258,3322.6,3322.2,9.52389]
[1722283950879,3.00947,3322.9,3322.2,6.51387]
[1722283951181,0.04351319,3322.8,3322.2,6.51387]
[1722283951497,0.04351319,3322.8,3322.3,3.00994]
[1722283951659,0.04351319,3322.8,3322.7,1.11]
[1722283951984,2.2518,3323.4,3322.7,6.5135]
[1722283952201,5.26078,3323.4,3323.2,1.11]
[1722283953197,5.26078,3323.4,3322.8,3.00945]
[1722283953387,0.04220922,3323.3,3322.8,3.00945]
[1722283954246,3.05125922,3323.3,3322.7,2.3939]
[1722283954456,3.05125922,3323.3,3322.7,5.40347]
[1722283955967,3.05125922,3323.3,3322.8,3.00948]
[1722283955968,0.04220922,3323.3,3322.8,3.00948]
[1722283956361,3.00879,3323.6,3323.0,3.00927]
[1722283956566,0.04097429,3323.5,3323.0,3.00927]
[1722283956778,0.04097429,3323.5,3323.2,3.00913]
[1722283956977,0.04097429,3323.5,3323.2,3.00908]
[1722283957179,3.00857,3323.9,3323.2,3.00908]
[1722283957420,2.6108727,3325.0,3323.2,3.00908]
[1722283957421,0.04095388,3323.4,3323.3,3.06922786]
[1722283957575,7.37020478,3324.5,3323.3,0.06017786]
[1722283957576,5.27643,3324.4,3323.3,0.06017786]
[1722283957899,3.00815,3324.3,3323.7,3.00862]
[1722283958065,3.04927266,3324.3,3323.7,3.00862]
[1722283959373,3.00824,3324.2,3323.6,3.00878]
[1722283959601,0.04112266,3324.3,3323.7,3.00867]
[1722283959834,5.27645,3324.4,3323.7,3.00867]
[1722283959835,0.04118928,3324.1,3323.7,3.00867]
[1722283960001,0.04120295,3324.2,3323.7,3.00862]
[1722283960215,0.04117562,3324.0,3323.7,3.00862]
[1722283960526,0.04118928,3324.1,3323.9,3.00851]
[1722283960736,2.2683,3324.4,3323.9,3.00851]
[1722283961529,0.00020478,3324.5,3324.0,3.00841]
[1722283962993,0.00020478,3324.5,3323.8,5.37334]
[1722283963638,0.00020478,3324.5,3323.9,3.0686631]
[1722283963937,3.00817478,3324.5,3323.9,3.0686631]
[1722283964307,3.00817478,3324.5,3323.7,3.00865]
[1722283964535,3.00821,3324.3,3323.7,3.00865]
[1722283964736,0.00020478,3324.5,3324.2,2.665]
[1722283965056,0.00020478,3324.5,3324.4,6.01612]
[1722283965554,0.00020478,3324.5,3324.4,3.00806]
[1722283965836,0.04180652,3324.5,3324.4,3.00806]
[1722283966040,0.00020478,3324.5,3324.4,3.00806]
[1722283966212,0.04185568,3324.5,3324.4,3.00806]
[1722283966418,0.00020478,3324.5,3324.4,3.00806]
[1722283966616,0.04184894,3324.5,3324.4,3.00806]
[1722283966820,0.00020478,3324.5,3324.4,3.00806]
[1722283967028,0.04184894,3324.5,3324.4,3.00806]
[1722283967213,0.00020478,3324.5,3324.4,3.00806]
[1722283967412,0.04185568,3324.5,3324.4,3.00806]
[1722283967656,0.00020478,3324.5,3324.4,3.00806]
[1722283968157,0.04193168,3324.5,3324.4,3.00806]
[1722283968312,0.04193168,3324.5,3324.4,6.01612]
[1722283968663,0.00020478,3324.5,3324.4,6.01612]
[1722283969007,0.04200991,3324.5,3324.4,6.01612]
[1722283969207,0.00020478,3324.5,3324.4,6.01612]
[1722283969405,0.04200991,3324.5,3324.4,3.00806]
[1722283969658,0.00020478,3324.5,3324.4,3.00806]
[1722283971029,0.04119325,3324.5,3324.4,3.00806]